fUSD/lending_fUSD_20240608
["ID","MTS","AMOUNT","RATE_DAILY","PERIOD"]
[328806096,1717806635442,-200.98418646,0.00029187,15]
[328806097,1717806635455,-1444.14581354,0.00029187,15]
[328806099,1717806635465,-164.18983498,0.0002926,2]
[328806101,1717806635475,-150.0,0.00029272,2]
[328806103,1717806635485,-159.22759623,0.00029309,2]
[328806105,1717806635494,-152.80388073,0.00029314,2]
[328806107,1717806635504,-345.32638714,0.0002936,2]
[328806109,1717806635514,-159.22759623,0.00029399,2]
[328806111,1717806635524,-164.18983498,0.00029402,2]
[328806113,1717806635533,-152.6472124,0.00029405,2]
[328806115,1717806635543,-1013.13868865,0.00029419,2]
[328806118,1717806635559,-994.53502422,0.00029419,2]
[328806120,1717806635572,-66.53383993,0.00029419,2]
[328806122,1717806635582,-1645.13,0.0002946,15]
[328806124,1717806635592,-1645.13,0.0002946,15]
[328806126,1717806635602,-872.58,0.0002949,3]
[328806127,1717806635612,-227.29188278,0.000295,3]
[328806128,1717806635622,-1404.177596,0.000295,15]
[328806129,1717806635631,-160.83439444,0.00029526,2]
[328806130,1717806635640,-164.18983498,0.00029595,2]
[328806131,1717806635650,-345.32638714,0.00029622,2]
[328806132,1717806635660,-159.22759623,0.00029641,2]
[328806133,1717806635670,-152.80388073,0.00029648,2]
[328806134,1717806635680,-345.32638714,0.00029649,2]
[328806135,1717806635689,-155.29733055,0.00029652,2]
[328806136,1717806635699,-883.60828273,0.00029699,4]
[328806137,1717806635709,-159.22759623,0.00029704,2]
[328806138,1717806635718,-1645.13,0.00029733,15]
[328806139,1717806635728,-1645.13,0.00029733,15]
[328806140,1717806635737,-153.81434452,0.00029745,2]
[328806141,1717806635747,-500.0,0.0002976,2]
[328806142,1717806635756,-700.0,0.00029784,2]
[328806143,1717806635766,-1000.92,0.000298,2]
[328806144,1717806635776,-155.0,0.000298,2]
[328806145,1717806635786,-152.17856395,0.00029815,2]
[328806146,1717806635795,-153.81434452,0.00029818,2]
[328806147,1717806635805,-2074.2075528,0.00029837,2]
[328806148,1717806635815,-345.32638714,0.00029856,2]
[328806149,1717806635825,-153.20287166,0.00029886,15]
[328806150,1717806635835,-183.32788254,0.00029886,15]
[328806152,1717806635844,-153.20287163,0.00029889,15]
[328806154,1717806635854,-183.32788253,0.00029891,15]
[328806155,1717806635863,-153.20287163,0.00029892,15]
[328806156,1717806635873,-153.20287163,0.00029894,15]
[328806157,1717806635882,-183.32788253,0.00029895,15]
[328806158,1717806635893,-153.20287163,0.00029897,15]
[328806159,1717806635903,-405.0,0.000299,5]
[328806160,1717806635913,-183.32788253,0.000299,15]
[328806161,1717806635923,-153.20287163,0.000299,15]
[328806162,1717806635932,-690.39684682,0.000299,2]
[328806163,1717806635942,-317.85636433,0.000299,2]
[328806164,1717806635952,-345.32638714,0.00029904,2]
[328806165,1717806635961,-152.80388073,0.00029906,2]
[328806166,1717806635971,-2074.2075528,0.0002992,2]
[328806167,1717806635980,-152.17856395,0.0002992,2]
[328806168,1717806635989,-238.25,0.0002997,2]
[328806169,1717806635999,-175.4719561,0.00029979,2]
[328806170,1717806636009,-175.4719561,0.00029979,2]
[328806171,1717806636018,-175.4719561,0.00029979,2]
[328806172,1717806636028,-175.4719561,0.00029979,2]
[328806173,1717806636038,-175.4719561,0.00029979,2]
[328806174,1717806636048,-3275.5797583,0.00029979,2]
[328806175,1717806636057,-2513.5155005,0.00029979,2]
[328806176,1717806636067,-1751.4512428,0.00029979,2]
[328806177,1717806636076,-989.3869851,0.00029979,2]
[328806178,1717806636086,-227.3227274,0.00029979,2]
[328806179,1717806636096,-68043.60686634,0.00029983,2]
[328806180,1717806636106,-552.42731361,0.00029986,2]
[328806181,1717806636115,-175.4719561,0.00029986,2]
[328806182,1717806636125,-4037.644016,0.00029986,2]
[328806183,1717806636134,-158.06,0.0002999,2]
[328806184,1717806636144,-158.06,0.0002999,2]
[328806185,1717806636155,-168.11398023,0.00029995,2]
[328806186,1717806636164,-646.58083619,0.00029998,2]
[328806187,1717806636174,-155.36120162,0.00029998,4]
[328806188,1717806636183,-790.20472017,0.00029998,2]
[328806189,1717806636193,-27296.78171597,0.00029998,4]
[328806190,1717806636202,-1899.99999916,0.00029999,2]
[328806191,1717806636213,-1273.37294,0.00029999,2]
[328806192,1717806636222,-115860.30181513,0.0003,13]
[328806193,1717806636235,-6393.22799159,0.0003,13]
[328806194,1717806636248,-52571.02769496,0.0003,13]
[328806195,1717806636261,-261.15578167,0.0003,13]
[328806196,1717806636274,-1501.57922295,0.0003,13]
[328806229,1717806643704,-202.65,0.0002999,10]
[328806231,1717806643714,-5337.19349803,0.0003,13]
[328806234,1717806643726,-1661.33606084,0.0003,13]
[328806239,1717806643890,-9594.03793159,0.0003,13]
[328806240,1717806644079,-697.62499914,0.0003,13]
[328806254,1717806646331,156.90340087,0.00021918,2]
[328806257,1717806647212,-3528.71171188,0.0003,13]
[328806260,1717806650230,242.77841805,0.00022499,2]
[328806261,1717806662517,2610.62014693,0.00022049,2]
[328806262,1717806706912,155.0,0.00017259,2]
[328806264,1717806782367,150.0,0.00019725,2]
[328806265,1717806824163,23927.49693668,0.00014,2]
[328806266,1717806824192,2389.24609558,0.00014,2]
[328806268,1717806908336,-347537.0,0.00014,2]
[328806327,1717807144720,-494.53280915,0.000139,2]
[328806328,1717807144743,-324.17435205,0.000139,2]
[328806329,1717807144767,-858.24,0.0001399,3]
[328806330,1717807144792,-389.48,0.0001399,3]
[328806331,1717807144816,-150.0,0.00013999,2]
[328806332,1717807144840,-26783.5728388,0.00014,2]
[328806335,1717807170301,-23323.91324379,0.00013999,2]
[328806336,1717807170325,-1187.60693215,0.00013999,2]
[328806337,1717807170350,-115488.47982406,0.00014,2]
[328806342,1717807189002,-470000.0,0.00014,2]
[328806400,1717807767090,-3064.39202491,0.0001358,2]
[328806401,1717807767111,-677.947979,0.00013581,2]
[328806402,1717807767132,-1169.85998029,0.0001372,2]
[328806403,1717807767153,-158.73412313,0.000139,2]
[328806404,1717807767174,-150.0,0.00013973,2]
[328806405,1717807767200,-150.0,0.00013999,2]
[328806406,1717807767229,-1575.45279267,0.00014,2]
[328806407,1717807770104,-89052.58960679,0.00014,2]
[328806408,1717807770127,-1410.97999298,0.00014,2]
[328806409,1717807770150,-155.0,0.00014,2]
[328806410,1717807770171,-947.3518,0.00014,2]
[328806411,1717807770194,-464.76051278,0.00014,2]
[328806412,1717807770217,-4881.22351379,0.00014,2]
[328806413,1717807770243,-1002.07078205,0.00017259,2]
[328806414,1717807770266,-1731.0,0.000198,2]
[328806415,1717807770288,-226.6238354,0.000201,2]
[328806416,1717807770312,-219.68,0.00023038,2]
[328806417,1717807770335,-179.21,0.00023049,2]
[328806418,1717807770357,-700.0,0.00023402,2]
[328806419,1717807770380,-500.0,0.00023402,2]
[328806420,1717807770401,-500.0,0.00023402,2]
[328806421,1717807770424,-500.0,0.00023402,2]
[328806422,1717807770446,-500.0,0.00023402,2]
[328806423,1717807770468,-700.0,0.0002395,2]
[328806424,1717807770491,-500.0,0.0002395,2]
[328806425,1717807770513,-11776.05995621,0.00024,15]
[328806439,1717807831873,-500.0,0.00023402,2]
[328806440,1717807831884,-500.0,0.00023402,2]
[328806441,1717807831894,-173.58658896,0.0002389,2]
[328806442,1717807831904,-103685.07012015,0.00024,15]
[328806443,1717807831925,-347.48195,0.00024,15]
[328806444,1717807831937,-29996.17864148,0.00024,15]
[328806445,1717807831977,-15011.14076,0.00024,15]
[328806446,1717807832164,-12460.3512008,0.00024,15]
[328806447,1717807832175,-339.04706187,0.00024,15]
[328806448,1717807832188,-4824.68606741,0.00024,15]
[328806449,1717807832200,-4878.68678925,0.00024,15]
[328806450,1717807832233,-1694.2,0.00024,15]
[328806451,1717807832246,-939.2,0.00024,15]
[328806452,1717807832260,-2161.85386114,0.00024,15]
[328806453,1717807832271,-2614.51207228,0.00024,15]
[328806454,1717807832282,-1956.37593354,0.00024,15]
[328806455,1717807832294,-4531.61751331,0.00024,15]
[328806456,1717807832334,-5999.8097016,0.00024,15]
[328806457,1717807832345,-1264.22156371,0.00024,15]
[328806458,1717807832382,-5439.96,0.00024,15]
[328806459,1717807832437,-2502.6,0.00024,15]
[328806461,1717807832448,-2418.1409,0.00024,15]
[328806483,1717807838092,-751.03835686,0.00024,15]
[328806484,1717807838104,-13921.68378196,0.00024,15]
[328806485,1717807838118,-411.70999974,0.00024,15]
[328806486,1717807838129,-3469.31844363,0.00024,15]
[328806487,1717807838141,-1315.94695395,0.00024,15]
[328806488,1717807840033,-479.77795545,0.00024,15]
[328806494,1717807840894,-368.49999999,0.00024,15]
[328806495,1717807840906,-252.0715,0.00024,15]
[328806496,1717807840917,-1805.08912059,0.00024,15]
[328806497,1717807841658,-88043.15653884,0.00024,15]
[328806498,1717807841668,-320.0156755,0.00024084,2]
[328806499,1717807841678,-158.73412313,0.00024184,2]
[328806500,1717807841688,-250.0,0.00024305,2]
[328806501,1717807841697,-253.9,0.00024384,2]
[328806502,1717807841707,-1000.0,0.00024419,2]
[328806503,1717807841717,-500.0,0.00024498,2]
[328806504,1717807841727,-600.0,0.00024498,2]
[328806505,1717807841737,-269.46,0.00024516,2]
[328806506,1717807841747,-1104.55471718,0.00024798,2]
[328806507,1717807841761,-1104.55471711,0.00024798,2]
[328806508,1717807841771,-180.62837514,0.00024799,2]
[328806509,1717807841780,-615.0,0.0002495,2]
[328806510,1717807841790,-988.63,0.0002495,2]
[328806511,1717807841801,-3207.10681525,0.00025,2]
[328806512,1717807841811,-1104.55471711,0.00025376,2]
[328806513,1717807841821,-179.21,0.00025789,2]
[328806514,1717807841832,-1104.55471711,0.00026023,2]
[328806515,1717807841842,-1104.55471711,0.00026669,2]
[328806516,1717807841851,-269.46,0.00026779,2]
[328806517,1717807841861,-154.26343262,0.00026817,2]
[328806518,1717807841870,-155.35371976,0.0002682,2]
[328806519,1717807841880,-166.19842472,0.00026852,2]
[328806520,1717807841890,-182.98503449,0.00026877,2]
[328806521,1717807841899,-180.62837514,0.00026942,2]
[328806522,1717807841908,-978.11713094,0.00027001,2]
[328806523,1717807841918,-153.16583406,0.00027029,2]
[328806524,1717807841928,-154.88823296,0.00027056,2]
[328806525,1717807841937,-166.19842472,0.00027083,2]
[328806526,1717807841948,-978.11713094,0.00027087,2]
[328806527,1717807841958,-152.70371646,0.00027114,2]
[328806528,1717807841968,-155.35371976,0.00027125,2]
[328806529,1717807841979,-155.35371976,0.00027129,2]
[328806530,1717807841991,-166.19842472,0.00027174,2]
[328806531,1717807842001,-166.19842472,0.00027202,2]
[328806532,1717807842011,-978.11713094,0.00027206,2]
[328806533,1717807842020,-978.11713094,0.00027223,2]
[328806534,1717807842030,-166.65534304,0.00027267,2]
[328806535,1717807842041,-1104.55471711,0.00027315,2]
[328806536,1717807842051,-978.11713094,0.00027386,2]
[328806537,1717807842060,-978.11713094,0.00027397,2]
[328806538,1717807842070,-781.5,0.0002744,2]
[328806539,1717807842079,-154.88823296,0.00027441,2]
[328806540,1717807842089,-978.11713094,0.00027464,2]
[328806541,1717807842098,-1000.0,0.00027471,2]
[328806542,1717807842108,-154.26343262,0.000275,2]
[328806543,1717807842118,-978.11713094,0.00027532,2]
[328806544,1717807842127,-166.19842472,0.00027542,2]
[328806545,1717807842137,-978.11713094,0.00027571,2]
[328806546,1717807842146,-154.26343262,0.00027573,2]
[328806547,1717807842156,-978.11713094,0.00027695,2]
[328806548,1717807842165,-152.70371646,0.0002771,2]
[328806549,1717807842176,-166.19842472,0.00027788,2]
[328806550,1717807842186,-154.26343262,0.00027789,2]
[328806551,1717807842196,-978.11713094,0.00027843,2]
[328806552,1717807842206,-154.26343262,0.00027903,2]
[328806553,1717807842216,-166.19842472,0.00027915,2]
[328806554,1717807842226,-978.11713094,0.00027943,2]
[328806555,1717807842236,-1104.55471711,0.00027961,2]
[328806556,1717807842247,-224.77957444,0.00028,2]
[328806557,1717807842257,-166.19842472,0.00028007,2]
[328806558,1717807842267,-153.81434452,0.00028098,2]
[328806559,1717807842276,-155.35371976,0.00028109,2]
[328806560,1717807842286,-154.26343262,0.00028186,2]
[328806561,1717807842296,-978.11713094,0.00028204,2]
[328806562,1717807842306,-166.19842472,0.00028268,2]
[328806563,1717807842315,-154.26343262,0.00028305,2]
[328806564,1717807842324,-166.19842472,0.00028319,2]
[328806565,1717807842334,-166.19842472,0.00028363,2]
[328806566,1717807842343,-166.19842472,0.00028373,2]
[328806567,1717807842353,-152.6472124,0.00028376,2]
[328806568,1717807842362,-978.11713094,0.00028401,2]
[328806569,1717807842372,-166.19842472,0.00028526,2]
[328806570,1717807842381,-179.21,0.00028528,2]
[328806571,1717807842391,-157.33324686,0.00028547,2]
[328806572,1717807842401,-1104.55471711,0.00028608,2]
[328806573,1717807842410,-150.0,0.00028617,2]
[328806574,1717807842420,-154.26343262,0.00028624,2]
[328806575,1717807842430,-152.64721241,0.00028681,2]
[328806576,1717807842439,-166.19842472,0.00028765,2]
[328806577,1717807842449,-155.35371976,0.00028787,2]
[328806578,1717807842459,-625.70433105,0.00028798,2]
[328806579,1717807842468,-152.70371646,0.00028809,2]
[328806580,1717807842478,-154.26343262,0.00028841,2]
[328806581,1717807842487,-155.35371976,0.00028876,2]
[328806582,1717807842497,-152.80388074,0.00028894,2]
[328806583,1717807842506,-153.81434452,0.00028932,2]
[328806584,1717807842516,-5000.0,0.00029007,2]
[328806585,1717807842526,-5000.0,0.00029008,2]
[328806586,1717807842535,-175.72,0.00029016,2]
[328806587,1717807842545,-269.46,0.00029043,2]
[328806588,1717807842554,-5000.0,0.00029067,2]
[328806589,1717807842564,-5000.0,0.00029124,2]
[328806590,1717807842573,-152.80388074,0.00029125,2]
[328806592,1717807842583,-5000.0,0.00029144,2]
[328806594,1717807842593,-159.81070052,0.00029148,2]
[328806595,1717807842602,-24608.09,0.00029241,2]
[328806597,1717807842611,-152.70371646,0.00029249,2]
[328806598,1717807842621,-1104.55471711,0.00029254,15]
[328806599,1717807842630,-155.35371976,0.00029263,2]
[328806600,1717807842640,-5000.0,0.00029271,2]
[328806601,1717807842649,-155.35371976,0.00029277,2]
[328806602,1717807842658,-5000.0,0.00029308,2]
[328806603,1717807842668,-152.80388074,0.00029331,2]
[328806604,1717807842677,-166.19842472,0.0002935,2]
[328806605,1717807842686,-152.80388074,0.00029353,2]
[328806606,1717807842695,-374.9829259,0.0002938,2]
[328806609,1717807842808,-4625.0170741,0.0002938,2]
[328806611,1717807842818,-152.80388074,0.00029395,2]
[328806613,1717807842828,-154.26343262,0.00029399,2]
[328806614,1717807842839,-978.11713094,0.00029403,2]
[328806615,1717807842850,-5000.0,0.00029445,2]
[328806616,1717807842859,-152.70371646,0.00029519,2]
[328806617,1717807842869,-166.19842472,0.0002952,2]
[328806618,1717807842879,-2507.56,0.00029541,2]
[328806619,1717807842889,-10000.0,0.00029543,2]
[328806620,1717807842898,-2719.15,0.00029575,2]
[328806621,1717807842907,-5000.0,0.00029579,2]
[328806622,1717807842916,-5000.0,0.00029588,2]
[328806623,1717807842925,-3279.69,0.00029612,2]
[328806624,1717807842935,-5000.0,0.00029656,2]
[328806625,1717807842946,-163.90629542,0.00029661,2]
[328806626,1717807842955,-154.26343262,0.0002968,2]
[328806627,1717807842965,-5000.0,0.00029695,2]
[328806628,1717807842976,-253.20337282,0.00029698,2]
[328806629,1717807842986,-688.55678458,0.00029699,4]
[328806630,1717807842995,-1061.14411,0.000297,2]
[328806631,1717807843006,-25000.0,0.00029701,2]
[328806632,1717807843016,-5000.0,0.00029734,2]
[328806633,1717807843026,-5000.0,0.00029749,2]
[328806634,1717807843037,-500.0,0.0002976,2]
[328806635,1717807843048,-329.90705038,0.00029793,2]
[328806636,1717807843059,-4679.6250613,0.00029795,2]
[328806637,1717807843108,-535.93498827,0.00029795,2]
[328806638,1717807843120,-400.57534126,0.00029795,2]
[328806639,1717807843133,-5660.00483941,0.00029795,2]
[328806640,1717807843261,-13723.85976976,0.00029795,2]
[328806641,1717807843271,-1100.2094,0.00029797,2]
[328806642,1717807843282,-173.25656806,0.00029798,2]
[328806643,1717807843292,-997.64,0.000298,2]
[328806644,1717807843302,-166.66666667,0.00029826,2]
[328806645,1717807843347,-166.19842472,0.00029856,2]
[328806646,1717807843357,-500.0,0.00029863,4]
[328806647,1717807843367,-433.07698016,0.00029863,4]
[328806648,1717807843377,-151.23,0.00029887,2]
[328806649,1717807843387,-500.0,0.00029891,3]
[328806650,1717807843397,-194280.05931326,0.00029897,2]
[328806651,1717807843411,-1488.34605624,0.00029897,2]
[328806652,1717807843423,-682.73348026,0.00029897,2]
[328806653,1717807843435,-5261.47744,0.00029897,2]
[328806669,1717807846169,-527.77077345,0.00029897,2]
[328806670,1717807846209,-7242.56673941,0.00029897,2]
[328806671,1717807846497,-1395.78693275,0.00029897,2]
[328806672,1717807846543,-2946.1552881,0.00029897,2]
[328806680,1717808949128,-537.53978765,0.00017259,2]
[328806681,1717808949155,-643.0,0.000201,2]
[328806682,1717808949191,-226.6238354,0.000201,2]
[328806683,1717808949217,-152.55,0.00021654,2]
[328806684,1717808949243,-355.79,0.00023284,2]
[328806685,1717808949269,-500.0,0.00023402,2]
[328806686,1717808949292,-600.0,0.00023402,2]
[328806687,1717808967468,226.6238354,0.00022499,2]
[328806688,1717808985368,226.6238354,0.00022499,2]
[328806689,1717809001368,48.50120615,0.00022499,2]
[328806698,1717809032292,-178.12262925,0.00022499,2]
[328806699,1717809032303,-164.30466413,0.0002385,2]
[328806700,1717809032498,-680.38351084,0.00025,2]
[328806701,1717809032511,-330.79,0.00025,2]
[328806702,1717809032522,-441.06769691,0.00025,2]
[328806703,1717809032537,-1220.34780496,0.00025,2]
[328806704,1717809032546,-246.21,0.00025052,2]
[328806705,1717809032556,-5120.02620353,0.00026,5]
[328806706,1717809032587,-7637.39999998,0.00026,5]
[328806707,1717809032598,-979.38,0.00026,5]
[328806708,1717809032691,-5563.52123378,0.00026,5]
[328806709,1717809032703,-1891.95350454,0.00026,5]
[328806710,1717809032791,-2184.26646072,0.00026,5]
[328806713,1717809032804,-146.95073482,0.00026,5]
[328806715,1717809032813,-154.13085622,0.00026856,2]
[328806716,1717809032823,-155.27157856,0.00026899,2]
[328806717,1717809032834,-214.43377488,0.00026922,2]
[328806741,1717809038227,-470.79451812,0.00022049,2]
[328806742,1717809038239,-2019.18783417,0.00022049,2]
[328806744,1717809038251,-121.6311566,0.00022049,2]
[328806745,1717809038261,-500.0,0.00023402,2]
[328806746,1717809038271,-500.0,0.00023402,2]
[328806747,1717809038281,-229.74219473,0.0002395,2]
[328806748,1717809038294,-270.25780527,0.0002395,2]
[328806749,1717809038304,-500.0,0.0002395,2]
[328806750,1717809038314,-385.56622512,0.00026922,2]
[328806751,1717809038324,-152.70371647,0.00027078,2]
[328806752,1717809038334,-494.13536862,0.00027082,2]
[328806753,1717809038344,-250.0,0.00027093,2]
[328806754,1717809038354,-155.27157856,0.00027118,2]
[328806755,1717809038364,-155.27157856,0.00027132,2]
[328806756,1717809038374,-154.13085622,0.00027158,2]
[328806757,1717809038383,-250.0,0.00027199,2]
[328806758,1717809038394,-494.13536862,0.00027222,2]
[328806759,1717809038403,-494.13536862,0.00027309,2]
[328806760,1717809038413,-246.21,0.00027316,2]
[328806761,1717809038422,-153.86889808,0.00027485,2]
[328806762,1717809038432,-400.0,0.00027502,2]
[328806763,1717809038445,-175.72,0.00027505,2]
[328806764,1717809038455,-155.27157856,0.00027561,2]
[328806765,1717809038465,-154.13085622,0.00027605,2]
[328806766,1717809038475,-154.13085622,0.00027625,2]
[328806767,1717809038484,-154.26343262,0.00027885,2]
[328806768,1717809038494,-224.77957444,0.00028,2]
[328806769,1717809038503,-494.13536862,0.00028009,2]
[328806770,1717809038513,-153.86889808,0.00028056,2]
[328806771,1717809038523,-494.13536862,0.00028116,2]
[328806772,1717809038532,-153.86889808,0.0002816,2]
[328806773,1717809038542,-494.13536862,0.00028222,2]
[328806774,1717809038551,-154.13085622,0.00028239,2]
[328806775,1717809038560,-151.85043176,0.000284,2]
[328806776,1717809038572,-166.66666668,0.00028437,2]
[328806777,1717809038581,-153.86889808,0.00028449,2]
[328806778,1717809038591,-3583.54311989,0.000285,3]
[328806779,1717809038601,-494.13536862,0.0002853,2]
[328806780,1717809038610,-152.70371647,0.00028535,2]
[328806781,1717809038620,-155.29733058,0.00028653,2]
[328806782,1717809038630,-494.13536862,0.00028688,2]
[328806783,1717809038640,-154.13085622,0.00028977,2]
[328806784,1717809038649,-494.13536862,0.00028984,2]
[328806785,1717809038659,-417.15,0.00029041,2]
[328806786,1717809038669,-152.80388075,0.00029055,2]
[328806787,1717809038678,-153.86889808,0.00029117,2]
[328806788,1717809038689,-153.86889808,0.00029158,2]
[328806789,1717809038699,-154.13085622,0.00029214,2]
[328806790,1717809038709,-159.22759626,0.0002923,2]
[328806791,1717809038719,-163.90629542,0.00029361,2]
[328806792,1717809038729,-494.13536862,0.00029412,2]
[328806793,1717809038739,-494.13536862,0.0002946,2]
[328806794,1717809038749,-494.13536862,0.00029489,2]
[328806795,1717809038760,-154.26343262,0.00029568,2]
[328806796,1717809038770,-246.21,0.0002958,2]
[328806797,1717809038780,-172.36223998,0.000296,2]
[328806798,1717809038793,-567.6803,0.000296,2]
[328806799,1717809038806,-1391.8573894,0.000296,2]
[328806800,1717809038822,-8581.90278996,0.000296,2]
[328806801,1717809038832,-155.27157856,0.00029602,2]
[328806802,1717809038842,-494.13536862,0.00029629,2]
[328806803,1717809038852,-154.13085622,0.00029643,2]
[328806804,1717809038862,-455.0879,0.00029697,2]
[328806805,1717809038872,-252.8485039,0.00029698,2]
[328806806,1717809038883,-837.78367873,0.00029699,4]
[328806807,1717809038893,-190.2735356,0.000297,15]
[328806808,1717809038903,-1000.0,0.000297,2]
[328806809,1717809038913,-184.21573549,0.000297,15]
[328806810,1717809038923,-219.6763,0.000297,2]
[328806811,1717809038932,-190.27353554,0.00029722,15]
[328806812,1717809038944,-190.27353554,0.00029744,15]
[328806813,1717809038954,-500.0,0.00029759,2]
[328806814,1717809038963,-10.92335247,0.00029767,15]
[328806815,1717809038980,-179.35018307,0.00029767,15]
[328806816,1717809038989,-494.13536862,0.00029773,2]
[328806817,1717809039000,-247.62,0.00029787,10]
[328806818,1717809039009,-206.35,0.00029787,10]
[328806819,1717809039019,-171.96,0.00029787,10]
[328806820,1717809039029,-190.27353554,0.00029789,15]
[328806821,1717809039039,-859.8,0.0002979,10]
[328806822,1717809039048,-8863.12265531,0.00029797,2]
[328806823,1717809039061,-11171.18645034,0.00029797,2]
[328806824,1717809039073,-453.72,0.00029797,2]
[328806825,1717809039085,-4452.06534445,0.00029797,2]
[328806826,1717809039098,-760.05397092,0.00029797,2]
[328806829,1717809042946,-304.184176,0.00024498,2]
[328806838,1717809044577,-195.815824,0.00024498,2]
[328806839,1717809044587,-500.0,0.00024498,2]
[328806840,1717809044596,-500.0,0.00025046,2]
[328806841,1717809044607,-13.65646267,0.00025594,2]
[328806842,1717809044618,-486.34353733,0.00025594,2]
[328806843,1717809044628,-500.0,0.00025594,2]
[328806844,1717809044638,-46.24611054,0.0002669,2]
[328806845,1717809044684,-453.75388946,0.0002669,2]
[328806846,1717809044696,-242.09477355,0.00027786,2]
[328806847,1717809044958,-257.90522645,0.00027786,2]
[328806848,1717809044968,-145.32327679,0.00029797,2]
[328806849,1717809045072,-500.0,0.00026142,2]
[328806850,1717809045082,-673.59980219,0.00029797,2]
[328806851,1717809045091,-2230.11708873,0.00029797,2]
[328806852,1717809045103,-2048.31541309,0.00029797,2]
[328806853,1717809045114,-3394.55659818,0.00029797,2]
[328806854,1717809045124,-405.44339482,0.00029797,2]
[328806855,1717809045142,-1367.25011,0.00029797,2]
[328806856,1717809045153,-11595.55679518,0.00029797,2]
[328806857,1717809045162,-653.13653212,0.00029797,2]
[328806858,1717809045173,-2264.2891,0.000298,2]
[328806859,1717809045182,-7422.46853989,0.000298,10]
[328806863,1717809046810,-500.0,0.00028882,2]
[328806864,1717809046822,-5258.26704044,0.000298,10]
[328806869,1717809046902,-500.0,0.00027238,2]
[328806871,1717809046912,-1466.09948345,0.000298,10]
[328806910,1717810145254,-226.6238354,0.000201,2]
[328806911,1717810160507,226.6238354,0.00022499,2]
[328806912,1717810182517,226.6238354,0.00022499,2]
[328806913,1717810182983,2611.61350889,0.00022049,2]
[328806914,1717810196629,74552.65258807,0.00022499,2]
[328806915,1717810196650,1839.17962684,0.00022499,2]
[328806916,1717810233048,-446.45853724,0.00022049,2]
[328806919,1717810233060,-2163.02773238,0.00022049,2]
[328806923,1717810233070,-226.6238354,0.00022499,2]
[328806925,1717810233080,-189.4786751,0.00022499,2]
[328806927,1717810233091,-407.44106543,0.00022499,2]
[328806929,1717810233103,-731.32,0.00022499,2]
[328806937,1717810233474,-464.34730983,0.00022499,2]
[328806938,1717810233486,-3289.73579581,0.00022499,2]
[328806939,1717810233497,-410.3939274,0.00022499,2]
[328806940,1717810233510,-15274.79999996,0.00022499,2]
[328806941,1717810233522,-752.35031756,0.00022499,2]
[328806942,1717810233534,-568.36,0.00022499,2]
[328806943,1717810233547,-3813.17988348,0.00022499,2]
[328806944,1717810233559,-496.29675969,0.00022499,2]
[328806945,1717810233570,-836.07057744,0.00022499,2]
[328806946,1717810233581,-1297.40186767,0.00022499,2]
[328806947,1717810233593,-20602.75563636,0.00022499,2]
[328806948,1717810233604,-1209.20350361,0.00022499,2]
[328806949,1717810233615,-7018.55581864,0.00022499,2]
[328806950,1717810233624,-754.03359039,0.00022499,2]
[328806951,1717810233634,-153.41,0.00024384,2]
[328806952,1717810233643,-2672.8111861,0.00025522,2]
[328806953,1717810233653,-209.27,0.00025523,2]
[328806954,1717810233663,-4943.83845254,0.00026,5]
[328806955,1717810239168,-18579.65968483,0.00026,5]
[328806956,1717810239178,-223.873,0.0002653,2]
[328806957,1717810239188,-415.67,0.0002653,2]
[328806958,1717810239197,-153.54401585,0.00026813,2]
[328806959,1717810239207,-150.53971209,0.00026868,2]
[328806960,1717810239217,-153.7380672,0.00026942,2]
[328806961,1717810239226,-155.31359267,0.00026944,2]
[328806962,1717810239236,-154.28996832,0.00026949,2]
[328806963,1717810239245,-546.57344419,0.00027015,2]
[328806964,1717810239255,-150.53971209,0.00027031,2]
[328806965,1717810239265,-546.57344419,0.0002706,2]
[328806966,1717810239275,-546.57344419,0.00027083,2]